fUST/lending_fUST_20260226
["ID","MTS","AMOUNT","RATE_DAILY","PERIOD"]
[406663444,1772047839484,-1000.0,0.00013821,2]
[406663445,1772047839494,-210.94405241,0.00013821,2]
[406663446,1772047839503,-1000.0,0.00013821,2]
[406663447,1772047839513,-1000.0,0.00013821,2]
[406663448,1772047839523,-1000.0,0.00013821,2]
[406663449,1772047839532,-436.37429699,0.00013821,2]
[406663450,1772047839541,-1000.0,0.00013821,2]
[406663451,1772047839551,-1000.0,0.00013821,2]
[406663452,1772047839561,-1000.0,0.00013821,2]
[406663453,1772047839570,-1000.0,0.00013821,2]
[406663454,1772047839580,-311.70754032,0.00013821,2]
[406663455,1772047839589,-164.6663033,0.00013973,2]
[406663456,1772047839598,-207.65166258,0.00014147,2]
[406663457,1772047839609,-306.5274,0.00014165,2]
[406663458,1772047839619,-600.0,0.00014221,2]
[406663459,1772047839628,-1229.04,0.00014245,2]
[406663460,1772047839638,-1229.04,0.00014246,2]
[406663461,1772047839648,-500.0,0.00014246,2]
[406663462,1772047839658,-500.0,0.00014246,2]
[406663463,1772047839667,-500.0,0.00014247,2]
[406663464,1772047839677,-1000.0,0.00014247,2]
[406663465,1772047839687,-500.0,0.00014247,2]
[406663466,1772047839696,-1000.0,0.00014247,2]
[406663467,1772047839706,-1000.0,0.00014247,2]
[406663468,1772047839716,-1000.0,0.00014247,2]
[406663469,1772047839725,-500.0,0.00014247,2]
[406663470,1772047839900,-508.48680697,0.00014247,2]
[406663471,1772047839911,-500.0,0.00014247,2]
[406663472,1772047839921,-1000.0,0.00014247,2]
[406663473,1772047839930,-1000.0,0.00014247,2]
[406663474,1772047839945,-955.89582786,0.00014247,2]
[406663475,1772047839959,-44.10417214,0.00014247,2]
[406663476,1772047839968,-1000.0,0.00014247,2]
[406663477,1772047839978,-1000.0,0.00014247,2]
[406663478,1772047839987,-1000.0,0.00014247,2]
[406663479,1772047839996,-1008.70804985,0.00014247,2]
[406663480,1772047840006,-1063.69048419,0.00014247,2]
[406663481,1772047840016,-1000.0,0.00014247,2]
[406663482,1772047840025,-1000.0,0.00014247,2]
[406663484,1772047840035,-1000.0,0.00014247,2]
[406663486,1772047840045,-300.0,0.00014247,2]
[406663487,1772047840054,-551.93251261,0.00014247,2]
[406663488,1772047840064,-223.77416114,0.00014247,2]
[406663489,1772047840074,-500.0,0.00014247,2]
[406663490,1772047840084,-1000.0,0.00014247,2]
[406663491,1772047840093,-1000.0,0.00014247,2]
[406663492,1772047840108,-1000.0,0.00014247,2]
[406663493,1772047840118,-389.16745886,0.00014247,2]
[406663494,1772047840128,-507.50724426,0.00014247,2]
[406663495,1772047840138,-500.0,0.00014247,2]
[406663496,1772047840150,-1000.84699625,0.00014247,2]
[406663497,1772047840160,-1000.0,0.00014247,2]
[406663498,1772047840170,-1000.0,0.00014247,2]
[406663499,1772047840181,-1000.0,0.00014247,2]
[406663500,1772047840191,-1095.19986559,0.00014247,2]
[406663502,1772047840200,-1000.0,0.00014247,2]
[406663503,1772047840210,-1000.0,0.00014247,2]
[406663504,1772047840220,-1000.0,0.00014247,2]
[406663505,1772047840229,-232.62213277,0.00014247,2]
[406663506,1772047840239,-680.9160732,0.00014368,2]
[406663507,1772047840249,-1500.0,0.00014368,2]
[406663509,1772047840259,-314.20889447,0.00014368,2]
[406663511,1772047840268,-1500.0,0.00014368,2]
[406663513,1772047840277,-1500.0,0.00014368,2]
[406663514,1772047840286,-338.60691704,0.00014368,2]
[406663516,1772047840296,-1500.0,0.00014368,2]
[406663518,1772047840307,-420.0,0.00014546,2]
[406663520,1772047840316,-279.0,0.00014594,2]
[406663522,1772047840326,-395.87487396,0.00014721,2]
[406663524,1772047840335,-900.0,0.00014768,2]
[406663526,1772047840344,-500.0,0.00014794,2]
[406663528,1772047840354,-198.94384239,0.00014795,2]
[406663530,1772047840363,-1078.42377882,0.00014795,2]
[406663532,1772047840372,-1500.0,0.00014795,2]
[406663534,1772047840382,-351.83425857,0.00014795,2]
[406663536,1772047840393,-636.43070677,0.00014795,2]
[406663538,1772047840403,-230.44998096,0.00014795,2]
[406663540,1772047840412,-1332.9015221,0.00014795,2]
[406663542,1772047840424,-167.0984779,0.00014795,2]
[406663544,1772047840433,-166.0602237,0.00014795,2]
[406663546,1772047840443,-495.23278916,0.00014916,2]
[406663914,1772047844169,-733.80721084,0.00014916,2]
[406663916,1772047844181,-358.73654042,0.00014916,2]
[406663918,1772047844190,-2000.0,0.00014916,2]
[406663920,1772047844199,-2000.0,0.00014916,2]
[406663921,1772047844209,-230.075994,0.00015068,2]
[406663923,1772047844218,-720.0,0.00015187,2]
[406663925,1772047844228,-600.0,0.00015316,2]
[406663927,1772047844237,-394.35013566,0.00015342,2]
[406663929,1772047844246,-2000.0,0.00015342,2]
[406663931,1772047844256,-1000.0,0.00015464,2]
[406663933,1772047844267,-816.92834661,0.00015464,2]
[406663934,1772047844276,-500.0,0.00015639,2]
[406663935,1772047844285,-5000.0,0.0001564,2]
[406663936,1772047844295,-2000.0,0.000157,2]
[406663937,1772047844305,-1179.13563913,0.00015765,2]
[406663938,1772047844314,-1215.061,0.000158,2]
[406663939,1772047844324,-1000.0,0.0001589,2]
[406663940,1772047844334,-864.0,0.00016706,2]
[406663941,1772047844343,-456.2625666,0.00016721,2]
[406663942,1772047844352,-166.667531,0.00018146,7]
[406663944,1772047844363,-1179.13563913,0.00018361,2]
[406663945,1772047844372,-1000.0,0.00018377,2]
[406663946,1772047844381,-516.65025924,0.00018721,2]
[406663947,1772047844390,-3994.24564111,0.00018768,2]
[406663948,1772047844399,-1545.581532,0.00019101,7]
[406663949,1772047844409,-852.8432,0.00019178,2]
[406663950,1772047844418,-511.7059,0.00019178,2]
[406663951,1772047844427,-852.8432,0.00019178,2]
[406663952,1772047844437,-1211.9125,0.00019339,30]
[406663953,1772047844446,-170.49,0.00019689,2]
[406663954,1772047844455,-500.0,0.00019898,2]
[406663955,1772047844465,-500.0,0.00019899,2]
[406663956,1772047844474,-500.0,0.00019899,2]
[406663957,1772047844484,-500.0,0.00019899,2]
[406663958,1772047844494,-500.0,0.00019899,2]
[406663959,1772047844503,-558.42,0.00019999,2]
[406663960,1772047844512,-500.0,0.00019999,2]
[406663961,1772047844522,-3230.05,0.0002,120]
[406663962,1772047844532,-1000.0,0.0002,2]
[406663963,1772047844542,-1000.0,0.0002,2]
[406663964,1772047844552,-1000.0,0.0002,2]
[406663965,1772047844563,-1000.0,0.0002,2]
[406663966,1772047844573,-1000.0,0.0002,2]
[406663968,1772047844583,-1000.0,0.0002,2]
[406663970,1772047844594,-1000.0,0.0002,2]
[406663971,1772047844604,-1000.0,0.0002,2]
[406663972,1772047844615,-1000.0,0.0002,2]
[406663973,1772047844625,-1000.0,0.0002,2]
[406663974,1772047844635,-1000.0,0.0002,2]
[406663975,1772047844645,-1000.0,0.0002,2]
[406663976,1772047844654,-1000.0,0.0002,2]
[406663977,1772047844663,-1000.0,0.0002,2]
[406663978,1772047844673,-1000.0,0.0002,2]
[406663979,1772047844868,-410.4,0.0002,2]
[406663980,1772047844891,-1000.0,0.0002,2]
[406663981,1772047844901,-284.2,0.0002,2]
[406663982,1772047844910,-1000.0,0.0002,2]
[406663983,1772047844920,-1000.0,0.0002,2]
[406663984,1772047844931,-1000.0,0.0002,2]
[406663985,1772047844940,-1000.0,0.0002,2]
[406663986,1772047844950,-1000.0,0.0002,2]
[406663987,1772047844960,-1000.0,0.0002,2]
[406663988,1772047844970,-1000.0,0.0002,2]
[406663989,1772047844979,-1000.0,0.0002,2]
[406663990,1772047844988,-1000.0,0.0002,2]
[406663991,1772047844997,-1000.0,0.0002,2]
[406663992,1772047845007,-1000.0,0.0002,2]
[406663993,1772047845016,-1000.0,0.0002,2]
[406663994,1772047845026,-1000.0,0.0002,2]
[406663995,1772047845035,-1000.0,0.0002,2]
[406663996,1772047845044,-1229.04,0.00020213,2]
[406663997,1772047845054,-1000.0,0.00020214,2]
[406663998,1772047845064,-244.0,0.00020214,2]
[406663999,1772047845075,-852.8432,0.00020411,5]
[406664000,1772047845084,-511.7059,0.00020411,5]
[406664001,1772047845094,-852.8432,0.00020411,5]
[406664002,1772047845105,-577.03795188,0.00020721,2]
[406664003,1772047845115,-511.7059,0.00020822,6]
[406664004,1772047845129,-1179.13563913,0.00020958,2]
[406664005,1772047845138,-1229.04,0.0002101,2]
[406664006,1772047845148,-500.0,0.0002101,2]
[406664007,1772047845157,-1942.53758531,0.00021011,2]
[406664008,1772047845169,-1652.36154335,0.00021011,2]
[406664009,1772047845180,-1550.49392678,0.00021011,2]
[406664010,1772047845189,-1504.88971472,0.00021011,2]
[406664011,1772047845200,-500.0,0.00021088,2]
[406664012,1772047845210,-500.0,0.00021088,2]
[406664013,1772047845219,-500.0,0.00021143,2]
[406664014,1772047845228,-2180.0,0.00021503,2]
[406664015,1772047845239,-637.0,0.00021503,2]
[406664016,1772047845248,-1385.0,0.00021503,2]
[406664017,1772047845258,-500.0,0.00021528,2]
[406664018,1772047845267,-500.0,0.00021858,2]
[406664019,1772047845278,-586.1,0.00021887,2]
[406664020,1772047845288,-672.3936,0.00021908,2]
[406664021,1772047845298,-672.3936,0.00021908,2]
[406664022,1772047845308,-622.3094,0.00021908,2]
[406664023,1772047845318,-622.3094,0.00021908,2]
[406664024,1772047845327,-2000.0,0.00021917,2]
[406664025,1772047845337,-3889.98582615,0.00021938,2]
[406664026,1772047845347,-3284.55680034,0.00021964,2]
[406664027,1772047845357,-500.0,0.00021971,2]
[406664028,1772047845368,-3072.01819292,0.00021972,2]
[406664029,1772047845377,-1000.0,0.00022236,10]
[406664030,1772047845387,-492.0,0.00022236,10]
[406664031,1772047845397,-637.42564452,0.00022721,2]
[406664032,1772047845406,-1957.856,0.00022759,2]
[406664033,1772047845416,-2579.17784983,0.00022759,2]
[406664034,1772047845426,-2030.296672,0.00022814,2]
[406664035,1772047845435,-4982.78703836,0.00022864,2]
[406664036,1772047845445,-2105.41764886,0.00022869,2]
[406664037,1772047845455,-4200.45531717,0.00022917,2]
[406664038,1772047845464,-2183.31810187,0.00022924,2]
[406664039,1772047845474,-288.9,0.00022931,2]
[406664040,1772047845484,-3925.81421563,0.00022932,2]
[406664041,1772047845494,-2264.10087164,0.00022979,2]
[406664042,1772047845504,-2347.87260389,0.00023034,2]
[406664043,1772047845513,-2434.74389024,0.00023089,2]
[406664044,1772047845523,-2524.82941417,0.00023144,2]
[406664045,1772047845533,-2618.2481025,0.00023199,2]
[406664046,1772047845542,-586.1,0.00023209,2]
[406664047,1772047845551,-2715.12328229,0.00023254,2]
[406664048,1772047845561,-2674.60743027,0.00023307,2]
[406664050,1772047845570,-2815.58284374,0.00023309,2]
[406664051,1772047845581,-2919.75940895,0.00023364,2]
[406664052,1772047845590,-3027.79050709,0.00023419,2]
[406664053,1772047845600,-3139.81875585,0.00023474,2]
[406664054,1772047845611,-744.54351979,0.00023515,2]
[406664055,1772047845621,-3255.99204981,0.00023529,2]
[406664057,1772047845631,-3376.46375566,0.00023584,2]
[406664059,1772047845640,-657.22191859,0.00023639,2]
[406664062,1772047845650,-1229.04,0.0002379,2]
[406664064,1772047845660,-5837.43406699,0.00023791,2]
[406664067,1772047845669,-60079.06,0.000238,2]
[406664069,1772047845679,-160.63541141,0.0002381,2]
[406664071,1772047845689,-2773.56790519,0.00023855,2]
[406664073,1772047845698,-4916.75205732,0.0002387,2]
[406664075,1772047845707,-253.893,0.00024344,6]
[406664076,1772047845716,-2876.18991768,0.00024403,2]
[406664077,1772047845726,-1000.0,0.00024459,10]
[406664078,1772047845735,-791.0,0.00024459,10]
[406664079,1772047845745,-579.44,0.00024459,2]
[406664080,1772047845755,-579.44,0.00024459,2]
[406664081,1772047845765,-579.44,0.00024459,2]
[406664082,1772047845774,-579.44,0.00024459,2]
[406664083,1772047845784,-579.44,0.00024459,2]
[406664084,1772047845794,-579.44,0.00024459,2]
[406664085,1772047845804,-579.44,0.00024459,2]
[406664086,1772047845814,-579.44,0.00024459,2]
[406664087,1772047845824,-579.44,0.00024459,2]
[406664088,1772047845833,-579.44,0.00024459,2]
[406664089,1772047845844,-579.44,0.00024459,2]
[406664090,1772047845853,-579.44,0.00024459,2]
[406664091,1772047845870,-579.44,0.00024459,2]
[406664092,1772047845891,-579.44,0.00024459,2]
[406664093,1772047845907,-579.44,0.00024459,2]
[406664094,1772047845925,-579.44,0.00024459,2]
[406664095,1772047845944,-579.44,0.00024459,2]
[406664096,1772047845963,-579.44,0.00024459,2]
[406664097,1772047845979,-579.44,0.00024459,2]
[406664098,1772047845998,-579.44,0.00024459,2]
[406664099,1772047846012,-579.44,0.00024459,2]
[406664100,1772047846028,-579.44,0.00024459,2]
[406664101,1772047846046,-579.44,0.00024459,2]
[406664102,1772047846066,-579.44,0.00024459,2]
[406664103,1772047846081,-579.44,0.00024459,2]
[406664104,1772047846094,-579.44,0.00024459,2]
[406664105,1772047846118,-579.44,0.00024459,2]
[406664106,1772047846131,-579.44,0.00024459,2]
[406664107,1772047846148,-579.44,0.00024459,2]
[406664108,1772047846161,-579.44,0.00024459,2]
[406664109,1772047846177,-579.44,0.00024459,2]
[406664110,1772047846191,-579.44,0.00024459,2]
[406664111,1772047846209,-579.44,0.00024459,2]
[406664112,1772047846224,-579.44,0.00024459,2]
[406664113,1772047846238,-579.44,0.00024459,2]
[406664114,1772047846252,-579.44,0.00024459,2]
[406664115,1772047846267,-579.44,0.00024459,2]
[406664116,1772047846281,-579.44,0.00024459,2]
[406664117,1772047846296,-694.02,0.00024459,2]
[406664118,1772047846311,-4616.75,0.00024502,2]
[406664119,1772047846325,-2180.0,0.00024503,2]
[406664121,1772047846340,-637.0,0.00024503,2]
[406664122,1772047846354,-586.1,0.00024531,2]
[406664123,1772047846372,-3077.83,0.000246,2]
[406664124,1772047846387,-558.3805,0.00024648,7]
[406664125,1772047846402,-604.89198262,0.00024657,12]
[406664126,1772047846418,-5985.14286835,0.00024717,2]
[406664127,1772047846435,-697.81333716,0.00024721,2]
[406664128,1772047846452,-5040.54975316,0.00024823,2]
[406664129,1772047846468,-21587.1753436,0.000249,2]
[406664130,1772047846485,-34.48797462,0.00024945,2]
[406664131,1772047847252,-133.51202538,0.00024945,2]
[406664132,1772047847267,-344.54797462,0.00024951,2]
[406664133,1772047863668,304.38771631,0.00013699,2]
[406664134,1772047866602,422.26408182,0.00013699,2]
[406664135,1772047866951,249.09719145,0.00013699,2]
[406664136,1772047866984,500.0,0.00013699,2]
[406664137,1772047867276,500.0,0.00013273,2]
[406664138,1772047867556,500.0,0.00013699,2]
[406664139,1772047870140,159.53084524,0.00013699,2]
[406664140,1772047870353,500.0,0.00013699,2]
[406664141,1772047870446,355.2573341,0.00013699,2]
[406664142,1772047870676,167.34415306,0.00013699,2]
[406664143,1772047870827,500.0,0.00013699,2]
[406664144,1772047873281,309.82110879,0.00013699,2]
[406664145,1772047873835,300.0,0.00013673,2]
[406664146,1772047873868,300.0,0.00014221,2]
[406664147,1772047879338,-178.02862228,0.00013268,2]
[406664148,1772047879365,-500.0,0.00013268,2]
[406664149,1772048281663,220.38,9.99e-05,2]
[406664162,1772048969112,-217.36,0.000127,2]
[406664163,1772048969132,-200.0,0.00012753,2]
[406664164,1772048969152,-182.094,0.00012904,14]
[406664165,1772048969173,-200.0,0.0001326,2]
[406664166,1772048969193,-101.75568684,0.00013267,2]
[406664198,1772049032679,-608.0,0.00013267,2]
[406664199,1772049032688,-300.0,0.00013272,2]
[406664200,1772049032698,-300.0,0.00013272,2]
[406664201,1772049032707,-300.0,0.00013272,2]
[406664202,1772049032716,-1200.0,0.00013272,2]
[406664203,1772049032726,-500.0,0.00013273,2]
[406664204,1772049032736,-561.36786673,0.00013273,2]
[406664205,1772049032746,-180.93171551,0.00013273,2]
[406664206,1772049032757,-500.0,0.00013273,2]
[406664207,1772049032766,-500.0,0.00013273,2]
[406664208,1772049032775,-387.03867066,0.00013273,2]
[406664209,1772049032785,-500.0,0.00013273,2]
[406664210,1772049032795,-500.0,0.00013273,2]
[406664211,1772049032804,-500.0,0.00013273,2]
[406664212,1772049032813,-162.6617471,0.00013273,2]
[406664213,1772049032830,-52.57950835,0.00013273,2]
[406664214,1772049032839,-579.19957721,0.00013273,2]
[406664215,1772049032848,-501.8810816,0.00013273,2]
[406664216,1772049032858,-507.24459589,0.00013273,2]
[406664217,1772049032867,-500.0,0.00013273,2]
[406664218,1772049032876,-852.879058,0.00013592,2]
[406664219,1772049032885,-1980.54453748,0.00013595,2]
[406664220,1772049032895,-151.0,0.00013688,2]
[406664221,1772049032904,-151.0,0.00013688,2]
[406664222,1772049032913,-151.0,0.00013688,2]
[406664223,1772049032923,-151.0,0.00013688,2]
[406664224,1772049032932,-151.0,0.00013688,2]
[406664225,1772049032942,-151.0,0.00013688,2]
[406664226,1772049032951,-151.0,0.00013688,2]
[406664227,1772049032960,-151.0,0.00013688,2]
[406664228,1772049032969,-151.0,0.00013688,2]
[406664229,1772049032978,-151.0,0.00013688,2]
[406664230,1772049032987,-151.0,0.00013688,2]
[406664231,1772049032996,-151.0,0.00013688,2]
[406664232,1772049033007,-151.0,0.00013688,2]
[406664233,1772049033016,-151.0,0.00013688,2]
[406664234,1772049033027,-151.0,0.00013688,2]
[406664235,1772049033036,-151.0,0.00013688,2]
[406664236,1772049033046,-870.57,0.00013698,2]
[406664237,1772049033055,-870.57,0.00013698,2]
[406664238,1772049033064,-870.57,0.00013698,2]
[406664239,1772049033074,-870.57,0.00013698,2]
[406664240,1772049033083,-870.57,0.00013698,2]
[406664241,1772049033094,-504.22557757,0.00013698,2]
[406664242,1772049033104,-500.0,0.00013698,2]
[406664243,1772049033115,-500.0,0.00013698,2]
[406664244,1772049033124,-189.4843408,0.00013699,2]
[406664245,1772049033134,-500.0,0.00013699,2]
[406664246,1772049033143,-500.0,0.00013699,2]
[406664247,1772049033152,-158.80729864,0.00013699,2]
[406664248,1772049033161,-500.0,0.00013699,2]
[406664249,1772049033170,-500.0,0.00013699,2]
[406664250,1772049033180,-500.54640499,0.00013699,2]
[406664251,1772049033189,-500.0,0.00013699,2]
[406664252,1772049033199,-422.26408182,0.00013699,2]
[406664253,1772049033209,-587.203662,0.00013699,2]
[406664254,1772049033220,-161.65644469,0.00013699,2]
[406664255,1772049033230,-150.80032092,0.00013699,2]
[406664256,1772049033241,-500.0,0.00013699,2]
[406664257,1772049033250,-16.68713889,0.00013699,2]
[406664260,1772049038267,-500.0,0.00013694,2]
[406664261,1772049038277,-500.0,0.00013694,2]
[406664262,1772049038456,-500.0,0.00013694,2]
[406664263,1772049038466,-500.0,0.00013694,2]
[406664264,1772049038476,-500.0,0.00013694,2]
[406664265,1772049038485,-500.0,0.00013694,2]
[406664266,1772049038496,-500.0,0.00013694,2]
[406664267,1772049038505,-500.0,0.00013694,2]
[406664268,1772049038515,-500.0,0.00013694,2]
[406664269,1772049038527,-500.0,0.00013694,2]
[406664270,1772049038536,-500.0,0.00013694,2]
[406664271,1772049038546,-500.0,0.00013694,2]
[406664272,1772049038556,-500.0,0.00013694,2]
[406664273,1772049038565,-403.861,0.00013694,2]
[406664274,1772049038575,-500.0,0.00013694,2]
[406664275,1772049038586,-500.0,0.00013694,2]
[406664276,1772049038595,-500.0,0.00013694,2]
[406664277,1772049038604,-500.0,0.00013694,2]
[406664278,1772049038614,-550.0,0.00013694,2]
[406664279,1772049038624,-567.42823847,0.00013694,2]
[406664280,1772049038633,-500.0,0.00013694,2]
[406664281,1772049038643,-500.0,0.00013694,2]
[406664282,1772049038653,-500.0,0.00013694,2]
[406664283,1772049038662,-500.0,0.00013694,2]
[406664284,1772049038672,-500.0,0.00013694,2]
[406664285,1772049038682,-500.0,0.00013694,2]
[406664286,1772049038692,-200.0,0.00013694,2]
[406664287,1772049038702,-500.0,0.00013694,2]
[406664288,1772049038711,-500.0,0.00013694,2]
[406664289,1772049038721,-483.31286111,0.00013699,2]
[406664290,1772049038731,-500.0,0.00013699,2]
[406664291,1772049038740,-500.0,0.00013699,2]
[406664292,1772049038749,-500.0,0.00013699,2]
[406664293,1772049038759,-500.0,0.00013699,2]
[406664294,1772049038768,-500.0,0.00013699,2]
[406664295,1772049038777,-500.0,0.00013699,2]
[406664296,1772049038787,-205.4414415,0.00013699,2]
[406664297,1772049038797,-300.0,0.00013699,2]
[406664298,1772049038806,-500.0,0.00013699,2]
[406664299,1772049038816,-500.0,0.00013699,2]
[406664300,1772049038826,-500.0,0.00013699,2]
[406664301,1772049038836,-500.52192581,0.00013699,2]
[406664302,1772049038845,-500.0,0.00013699,2]
[406664303,1772049038855,-500.0,0.00013699,2]
[406664304,1772049038864,-164.83532929,0.00013699,2]
[406664305,1772049038874,-500.0,0.00013699,2]
[406664306,1772049038883,-500.0,0.00013699,2]
[406664307,1772049038893,-500.0,0.00013699,2]
[406664308,1772049038903,-301.05615761,0.00013699,2]
[406664309,1772049038912,-500.0,0.00013699,2]
[406664310,1772049038923,-500.0,0.00013699,2]
[406664311,1772049038933,-174.60526043,0.00013699,2]
[406664312,1772049038942,-331.60913493,0.00013699,2]
[406664313,1772049038952,-522.46502543,0.00013699,2]
[406664314,1772049038962,-500.0,0.00013699,2]
[406664315,1772049038971,-500.0,0.00013699,2]
[406664316,1772049038981,-500.0,0.00013699,2]
[406664317,1772049038990,-150.0,0.000137,2]
[406664318,1772049038999,-500.0,0.00013721,2]
[406664319,1772049039008,-870.57,0.0001382,2]
[406664320,1772049039018,-1000.0,0.00013821,2]
[406664321,1772049039027,-1087.64016118,0.00013821,2]
[406664322,1772049039037,-1000.0,0.00013821,2]
[406664323,1772049039047,-1000.0,0.00013821,2]
[406664324,1772049039057,-300.0,0.00013972,2]
[406664325,1772049039067,-300.0,0.00013972,2]
[406664326,1772049039077,-300.0,0.00013972,2]
[406664327,1772049039087,-300.0,0.00013972,2]
[406664328,1772049039098,-300.0,0.00013972,2]
[406664329,1772049039107,-300.0,0.00013972,2]
[406664330,1772049039117,-300.0,0.00013972,2]
[406664331,1772049039127,-300.0,0.00013972,2]
[406664332,1772049039137,-300.0,0.00013972,2]
[406664333,1772049039147,-300.0,0.00013972,2]
[406664334,1772049039156,-300.0,0.00013972,2]
[406664335,1772049039167,-300.0,0.00013972,2]
[406664336,1772049039177,-300.0,0.00013972,2]
[406664337,1772049039187,-300.0,0.00013972,2]
[406664338,1772049039197,-300.0,0.00013972,2]
[406664339,1772049039207,-3369.67856985,0.00014147,2]
[406664340,1772049039217,-852.879058,0.00014165,2]
[406664341,1772049039227,-1720.79996745,0.00014175,2]
[406664342,1772049039236,-1372.89542883,0.00014175,2]
[406664343,1772049039246,-2612.55754109,0.00014175,2]
[406664344,1772049039256,-150.0,0.000142,2]
[406664345,1772049039266,-870.57,0.00014246,2]
[406664346,1772049039275,-870.57,0.00014246,2]
[406664347,1772049039285,-500.0,0.00014247,2]
[406664348,1772049039294,-1058.84230415,0.00014247,2]
[406664349,1772049039303,-1000.0,0.00014247,2]
[406664350,1772049039313,-1000.0,0.00014247,2]
[406664351,1772049039322,-165.22742331,0.00014247,2]
[406664352,1772049039331,-1000.0,0.00014247,2]
[406664353,1772049039340,-1000.0,0.00014247,2]
[406664354,1772049039350,-1000.0,0.00014247,2]
[406664355,1772049039360,-1000.0,0.00014247,2]
[406664356,1772049039370,-501.97113606,0.00014247,2]
[406664357,1772049039380,-1000.0,0.00014247,2]
[406664358,1772049039390,-367.81742456,0.00014247,2]
[406664359,1772049039399,-1000.0,0.00014247,2]
[406664360,1772049039409,-963.01043928,0.00014247,2]
[406664361,1772049039419,-150.44666625,0.00014247,2]
[406664362,1772049039429,-1000.0,0.00014247,2]
[406664363,1772049039438,-1000.0,0.00014247,2]
[406664364,1772049039448,-505.20262571,0.00014247,2]
[406664365,1772049039461,-1000.0,0.00014247,2]
[406664366,1772049039470,-600.0,0.0001425,2]
[406664367,1772049039480,-1402.71852055,0.00014368,2]
[406664368,1772049039490,-630.102205,0.00014551,2]
[406664369,1772049039501,-420.0,0.00014551,2]
[406664370,1772049039511,-1680.0,0.00014599,2]
[406664371,1772049039521,-456.82819324,0.00014713,2]
[406664372,1772049039533,-852.879058,0.00014737,2]
[406664373,1772049039543,-870.57,0.00014794,2]
[406664374,1772049039552,-1000.0,0.00014795,2]
[406664375,1772049039562,-916.54356557,0.00014795,2]
[406664376,1772049039571,-504.25010728,0.00014795,2]
[406664377,1772049039581,-1500.0,0.00014795,2]
[406664378,1772049039592,-516.99176411,0.00014795,2]
[406664379,1772049039602,-1500.0,0.00014795,2]
[406664380,1772049039612,-684.82155238,0.00014795,2]
[406664381,1772049039622,-232.25994081,0.00014795,2]
[406664382,1772049039632,-1500.0,0.00014795,2]
[406664383,1772049039643,-150.0,0.000148,2]
[406664384,1772049039653,-157.64657093,0.00014816,2]
[406664385,1772049039664,-4222.84899188,0.00015042,2]
[406664386,1772049039675,-514.24,0.0001512,2]
[406664387,1772049039686,-3427.34808024,0.00015125,2]
[406664388,1772049039696,-2701.47317867,0.0001515,2]
[406664389,1772049039706,-200.0,0.00015217,2]
[406664390,1772049039717,-564.73667167,0.0001522,2]
[406664391,1772049039732,-150.0,0.000153,2]
[406664392,1772049039742,-852.879058,0.00015309,2]
[406664393,1772049039751,-816.79111198,0.00015342,2]
[406664394,1772049039761,-195.33133116,0.00015342,2]
[406664395,1772049039770,-267.33341425,0.00015342,2]
[406664396,1772049039780,-870.57,0.00015639,2]
[406664397,1772049039790,-720.0,0.00015675,2]
[406664398,1772049039800,-852.879058,0.00015881,2]
[406664399,1772049039810,-150.0,0.000159,2]
[406664400,1772049039819,-4577.00977362,0.00015909,2]
[406664401,1772049039829,-587.0,0.00015953,2]
[406664402,1772049039839,-259.16,0.00016,2]